fUST/lending_fUST_20240521
["ID","MTS","AMOUNT","RATE_DAILY","PERIOD"]
[327624325,1716256263191,-585.89,0.00044657,43]
[327624326,1716256263200,-798.18,0.00044657,43]
[327624327,1716256263210,-706.53,0.00044657,43]
[327624328,1716256263219,-500.0,0.00044657,43]
[327624329,1716256263229,-500.0,0.00044657,43]
[327624330,1716256263240,-500.0,0.00044657,43]
[327624331,1716256263252,-500.0,0.00044657,43]
[327624332,1716256263262,-526.95,0.00044657,43]
[327624333,1716256263271,-500.0,0.00044657,43]
[327624334,1716256263281,-500.0,0.00044657,43]
[327624335,1716256263291,-500.0,0.00044657,43]
[327624336,1716256263301,-761.38,0.00044657,43]
[327624337,1716256263310,-699.03,0.00044657,43]
[327624338,1716256263320,-500.0,0.00044657,43]
[327624339,1716256263329,-202.42077494,0.00044657,43]
[327624340,1716256263339,-668.01,0.00044657,43]
[327624341,1716256263348,-983.04,0.00044657,43]
[327624342,1716256263358,-500.0,0.00044657,43]
[327624343,1716256263367,-500.0,0.00044657,43]
[327624344,1716256263377,-500.0,0.00044657,43]
[327624345,1716256263387,-500.0,0.00044657,43]
[327624346,1716256263397,-640.06,0.00044657,43]
[327624347,1716256263406,-557.05,0.00044657,43]
[327624348,1716256263416,-1324.9,0.00044657,43]
[327624349,1716256263426,-634.01,0.00044657,43]
[327624350,1716256263435,-512.82,0.00044657,43]
[327624351,1716256263445,-655.25,0.00044657,43]
[327624352,1716256263455,-500.0,0.00044657,43]
[327624353,1716256263464,-500.0,0.00044657,43]
[327624354,1716256263473,-500.0,0.00044657,43]
[327624355,1716256263483,-500.0,0.00044657,43]
[327624356,1716256263494,-504.24361681,0.00044657,43]
[327624358,1716256263504,-820.76,0.00044657,43]
[327624359,1716256263514,-500.0,0.00044657,43]
[327624360,1716256263525,-500.0,0.00044657,43]
[327624361,1716256263536,-500.0,0.00044657,43]
[327624362,1716256263546,-500.0,0.00044657,43]
[327624363,1716256263556,-500.0,0.00044657,43]
[327624364,1716256263567,-500.0,0.00044657,43]
[327624365,1716256263577,-500.0,0.00044657,43]
[327624366,1716256263586,-500.0,0.00044657,43]
[327624367,1716256263596,-1050.19,0.00044657,43]
[327624368,1716256263608,-500.0,0.00044657,43]
[327624369,1716256263617,-500.0,0.00044657,43]
[327624370,1716256263627,-500.0,0.00044657,43]
[327624371,1716256263637,-500.0,0.00044657,43]
[327624372,1716256263646,-500.0,0.00044657,43]
[327624373,1716256263656,-578.19,0.00044657,43]
[327624374,1716256263665,-500.0,0.00044657,43]
[327624375,1716256263675,-500.0,0.00044657,14]
[327624376,1716256263684,-500.0,0.00044657,43]
[327624377,1716256263693,-500.0,0.00044657,2]
[327624378,1716256263703,-519.53608223,0.00044657,43]
[327624379,1716256263712,-868.84,0.00044657,43]
[327624380,1716256263722,-560.94,0.00044657,43]
[327624381,1716256263731,-500.0,0.00044657,43]
[327624382,1716256263742,-500.0,0.00044657,43]
[327624383,1716256263755,-3015.8,0.00044657,43]
[327624384,1716256263776,-500.0,0.00044657,43]
[327624385,1716256263792,-500.0,0.00044657,43]
[327624386,1716256263811,-500.0,0.00044657,120]
[327624387,1716256263832,-742.5,0.00044657,43]
[327624388,1716256263851,-1312.06,0.00044657,43]
[327624389,1716256263869,-500.0,0.00044657,43]
[327624390,1716256263885,-672.9,0.00044657,43]
[327624391,1716256263900,-500.0,0.00044657,43]
[327624392,1716256263918,-506.14290485,0.00044657,43]
[327624393,1716256263937,-1721.54,0.00044657,43]
[327624394,1716256263954,-537.17,0.00044657,43]
[327624395,1716256263967,-1288.56,0.00044657,43]
[327624396,1716256263986,-500.0,0.00044657,43]
[327624397,1716256264001,-2966.04,0.00044657,43]
[327624398,1716256264017,-500.0,0.00044657,43]
[327624399,1716256264032,-800.58,0.00044657,43]
[327624400,1716256264047,-1101.76,0.00044657,43]
[327624401,1716256264063,-519.32,0.00044657,43]
[327624402,1716256264078,-571.16,0.00044657,43]
[327624403,1716256264093,-3000.0,0.00044657,30]
[327624404,1716256264108,-500.0,0.00044657,43]
[327624405,1716256264123,-500.0,0.00044657,43]
[327624406,1716256264139,-679.77,0.00044657,43]
[327624407,1716256264153,-500.0,0.00044657,43]
[327624408,1716256264169,-500.0,0.00044657,43]
[327624409,1716256264183,-547.95603684,0.00044657,43]
[327624410,1716256264198,-3098.74,0.00044657,43]
[327624411,1716256264212,-573.79,0.00044657,43]
[327624412,1716256264227,-740.22,0.00044657,43]
[327624413,1716256264242,-500.0,0.00044657,43]
[327624414,1716256264257,-946.03,0.00044657,43]
[327624415,1716256264271,-520.3,0.00044657,43]
[327624416,1716256264286,-500.0,0.00044657,43]
[327624417,1716256264300,-683.12,0.00044657,43]
[327624418,1716256264313,-1857.09,0.00044657,43]
[327624419,1716256264328,-815.0,0.00044657,43]
[327624420,1716256264343,-500.0,0.00044657,43]
[327624421,1716256264359,-504.58,0.00044657,43]
[327624422,1716256264374,-506.41916288,0.00044657,43]
[327624423,1716256264388,-725.35,0.00044657,43]
[327624424,1716256264403,-1095.12,0.00044657,43]
[327624425,1716256264417,-758.0,0.00044657,43]
[327624426,1716256264432,-10687.91,0.00044657,43]
[327624427,1716256264446,-3071.22,0.00044657,7]
[327624428,1716256264461,-1953.62,0.00044657,43]
[327624429,1716256264475,-500.0,0.00044657,43]
[327624430,1716256264491,-621.32,0.00044657,43]
[327624431,1716256264506,-871.95,0.00044657,7]
[327624432,1716256264544,-500.0,0.00044657,43]
[327624433,1716256264574,-711.26,0.00044657,43]
[327624434,1716256264596,-500.0,0.00044657,43]
[327624435,1716256264618,-779.29,0.00044657,43]
[327624436,1716256264637,-500.0,0.00044657,43]
[327624437,1716256264655,-500.0,0.00044657,43]
[327624438,1716256264672,-500.0,0.00044657,43]
[327624439,1716256264687,-500.0,0.00044657,43]
[327624440,1716256264703,-702.98,0.00044657,43]
[327624441,1716256264718,-746.5,0.00044657,43]
[327624442,1716256264736,-500.0,0.00044657,43]
[327624443,1716256264874,-4569.8,0.00044657,43]
[327624444,1716256264884,-500.0,0.00044657,43]
[327624445,1716256264894,-558.71,0.00044657,43]
[327624446,1716256264903,-500.0,0.00044657,43]
[327624447,1716256264912,-655.44,0.00044657,43]
[327624448,1716256264921,-979.85,0.00044657,43]
[327624449,1716256264932,-616.35,0.00044657,43]
[327624450,1716256264941,-517.50652202,0.00044657,43]
[327624451,1716256264951,-500.0,0.00044657,43]
[327624452,1716256264960,-500.0,0.00044657,43]
[327624453,1716256264969,-860.47,0.00044657,43]
[327624454,1716256264978,-500.0,0.00044657,43]
[327624455,1716256264988,-701.3,0.00044657,43]
[327624456,1716256264999,-621.4,0.00044657,43]
[327624457,1716256265009,-502.0085224,0.00044657,43]
[327624458,1716256265018,-500.0,0.00044657,43]
[327624459,1716256265027,-5043.45,0.00044657,43]
[327624460,1716256265036,-500.0,0.00044657,43]
[327624461,1716256265045,-500.0,0.00044657,43]
[327624462,1716256265054,-500.0,0.00044657,43]
[327624463,1716256265063,-680.66,0.00044657,43]
[327624464,1716256265072,-905.75,0.00044657,43]
[327624465,1716256265082,-500.0,0.00044657,43]
[327624466,1716256265091,-668.38,0.00044657,43]
[327624467,1716256265101,-500.0,0.00044657,43]
[327624468,1716256265110,-515.09623952,0.00044657,43]
[327624469,1716256265120,-4536.56,0.00044657,43]
[327624470,1716256265129,-960.25,0.00044657,43]
[327624471,1716256265139,-500.0,0.00044657,43]
[327624472,1716256265148,-634.52,0.00044657,43]
[327624473,1716256265157,-530.04,0.00044657,43]
[327624474,1716256265167,-500.0,0.00044657,43]
[327624475,1716256265176,-500.0,0.00044657,43]
[327624476,1716256265185,-500.0,0.00044657,43]
[327624477,1716256265195,-615.03972199,0.00044657,43]
[327624478,1716256265205,-1213.79,0.00044657,43]
[327624479,1716256265214,-815.37,0.00044657,43]
[327624480,1716256265224,-697.34,0.00044657,43]
[327624481,1716256265233,-500.0,0.00044657,43]
[327624482,1716256265247,-500.0,0.00044657,43]
[327624483,1716256265257,-704.21,0.00044657,43]
[327624484,1716256265267,-500.0,0.00044657,20]
[327624485,1716256265276,-543.69,0.00044657,43]
[327624486,1716256265286,-440.99847346,0.00044657,43]
[327624487,1716256265295,-1357.0,0.00044657,43]
[327624488,1716256265305,-300.0,0.00044657,7]
[327624489,1716256265314,-590.21,0.00044657,43]
[327624490,1716256265323,-4443.84,0.00044657,21]
[327624491,1716256265332,-500.0,0.00044657,43]
[327624492,1716256265342,-568.3,0.00044657,43]
[327624493,1716256265351,-500.0,0.00044657,43]
[327624494,1716256265360,-603.81,0.00044657,43]
[327624495,1716256265370,-854.22,0.00044657,43]
[327624496,1716256265379,-1298.13,0.00044657,43]
[327624497,1716256265388,-686.9,0.00044657,43]
[327624498,1716256265398,-500.0,0.00044657,43]
[327624499,1716256265407,-1283.07,0.00044657,43]
[327624500,1716256265417,-500.0,0.00044657,43]
[327624501,1716256265426,-1928.09,0.00044657,43]
[327624502,1716256265436,-1521.93,0.00044657,43]
[327624503,1716256265445,-500.0,0.00044657,43]
[327624504,1716256265454,-500.0,0.00044657,43]
[327624505,1716256265463,-500.0,0.00044657,43]
[327624506,1716256265473,-500.0,0.00044657,43]
[327624507,1716256265481,-500.0,0.00044657,43]
[327624508,1716256265497,-2444.74103411,0.00044657,43]
[327624509,1716256265719,-820.59896589,0.00044657,43]
[327624510,1716256265729,-500.0,0.00044657,43]
[327624511,1716256265741,-962.63,0.00044657,43]
[327624512,1716256265750,-500.0,0.00044657,43]
[327624513,1716256265759,-500.0,0.00044657,43]
[327624514,1716256265768,-19738.08,0.00044657,43]
[327624515,1716256265778,-500.0,0.00044657,43]
[327624516,1716256265787,-500.0,0.00044657,30]
[327624517,1716256265797,-711.64,0.00044657,43]
[327624518,1716256265807,-2017.3,0.00044657,43]
[327624519,1716256265816,-500.0,0.00044657,43]
[327624520,1716256265825,-1090.23,0.00044657,43]
[327624521,1716256265835,-500.0,0.00044657,43]
[327624522,1716256265844,-1090.8,0.00044657,43]
[327624523,1716256265853,-500.0,0.00044657,43]
[327624524,1716256265863,-774.07,0.00044657,43]
[327624525,1716256265872,-500.0,0.00044657,43]
[327624526,1716256265881,-500.0,0.00044657,43]
[327624527,1716256265890,-2075.97,0.00044657,43]
[327624528,1716256265899,-500.0,0.00044657,43]
[327624529,1716256265908,-500.0,0.00044657,43]
[327624530,1716256265920,-695.68,0.00044657,43]
[327624531,1716256265929,-500.0,0.00044657,43]
[327624532,1716256265938,-846.21,0.00044657,43]
[327624533,1716256265948,-500.0,0.00044657,43]
[327624534,1716256265957,-300.0,0.0004471,7]
[327624535,1716256265967,-500.0,0.00044784,9]
[327624536,1716256265976,-397.0,0.00044829,71]
[327624537,1716256265986,-1236.0,0.00044829,71]
[327624538,1716256265997,-1575.75757576,0.0004484,15]
[327624539,1716256266006,-150.5,0.00044901,35]
[327624540,1716256266016,-553.0,0.00044901,15]
[327624541,1716256266026,-544.0,0.00044901,35]
[327624542,1716256266035,-208.0,0.00044901,35]
[327624543,1716256266045,-157.87,0.00044901,35]
[327624544,1716256266054,-151.21,0.00044901,35]
[327624545,1716256266064,-152.12,0.00044901,35]
[327624546,1716256266073,-1004.0,0.00044901,35]
[327624547,1716256266083,-151.71,0.00044901,35]
[327624548,1716256266092,-150.5,0.00044911,35]
[327624549,1716256266101,-553.0,0.00044911,15]
[327624550,1716256266111,-544.0,0.00044911,35]
[327624551,1716256266120,-208.0,0.00044911,35]
[327624552,1716256266129,-1004.0,0.00044911,35]
[327624553,1716256266138,-150.5,0.00044921,35]
[327624554,1716256266147,-553.0,0.00044921,15]
[327624555,1716256266156,-544.0,0.00044921,35]
[327624556,1716256266166,-208.0,0.00044921,35]
[327624557,1716256266175,-1004.0,0.00044921,35]
[327624558,1716256266184,-500.0,0.00044931,7]
[327624559,1716256266193,-500.0,0.00044931,44]
[327624560,1716256266202,-500.0,0.00044931,44]
[327624561,1716256266212,-767.25,0.00044931,44]
[327624562,1716256266221,-500.0,0.00044931,44]
[327624563,1716256266230,-500.0,0.00044931,44]
[327624564,1716256266243,-837.43,0.00044931,44]
[327624565,1716256266252,-650.81,0.00044931,44]
[327624566,1716256266261,-500.0,0.00044931,44]
[327624567,1716256266270,-500.0,0.00044931,44]
[327624568,1716256266280,-597.94,0.00044931,44]
[327624569,1716256266289,-500.0,0.00044931,44]
[327624570,1716256266298,-207.78086544,0.00044931,44]
[327624571,1716256266307,-500.0,0.00044931,44]
[327624572,1716256266317,-500.0,0.00044931,44]
[327624573,1716256266326,-500.0,0.00044931,44]
[327624574,1716256266336,-500.0,0.00044931,44]
[327624575,1716256266346,-500.0,0.00044931,44]
[327624576,1716256266355,-500.0,0.00044931,44]
[327624577,1716256266367,-502.36671599,0.00044931,44]
[327624578,1716256266482,-500.0,0.00044931,44]
[327624579,1716256266495,-201.43803478,0.00044931,44]
[327624580,1716256266504,-559.54,0.00044931,44]
[327624581,1716256266515,-622.99,0.00044931,44]
[327624582,1716256266524,-500.0,0.00044931,44]
[327624583,1716256266538,-500.0,0.00044931,44]
[327624584,1716256266547,-500.0,0.00044931,44]
[327624585,1716256266558,-500.0,0.00044931,44]
[327624586,1716256266568,-500.0,0.00044931,44]
[327624587,1716256266578,-500.0,0.00044931,44]
[327624588,1716256266587,-500.0,0.00044931,44]
[327624589,1716256266598,-500.0,0.00044931,44]
[327624590,1716256266609,-500.0,0.00044931,44]
[327624591,1716256266620,-500.0,0.00044931,44]
[327624592,1716256266629,-500.0,0.00044931,44]
[327624593,1716256266638,-789.44,0.00044931,44]
[327624594,1716256266647,-540.7,0.00044931,44]
[327624595,1716256266656,-500.0,0.00044931,44]
[327624596,1716256266666,-596.6,0.00044931,44]
[327624597,1716256266675,-500.0,0.00044931,44]
[327624598,1716256266685,-500.0,0.00044931,44]
[327624599,1716256266694,-702.31,0.00044931,44]
[327624600,1716256266703,-500.0,0.00044931,44]
[327624601,1716256266712,-985.17,0.00044931,44]
[327624602,1716256266722,-1198.71,0.00044931,44]
[327624603,1716256266731,-500.0,0.00044931,2]
[327624604,1716256266744,-500.0,0.00044931,44]
[327624605,1716256266753,-500.0,0.00044931,44]
[327624606,1716256266763,-500.0,0.00044931,44]
[327624607,1716256266772,-889.02,0.00044931,44]
[327624608,1716256266784,-698.24,0.00044931,44]
[327624609,1716256266794,-500.0,0.00044931,44]
[327624610,1716256266803,-676.37,0.00044931,44]
[327624611,1716256266812,-500.0,0.00044931,44]
[327624612,1716256266821,-724.9,0.00044931,44]
[327624613,1716256266832,-803.48,0.00044931,44]
[327624614,1716256266841,-524.30773322,0.00044931,44]
[327624615,1716256266851,-500.0,0.00044931,44]
[327624616,1716256266860,-500.0,0.00044931,44]
[327624617,1716256266869,-500.0,0.00044931,44]
[327624618,1716256266878,-500.0,0.00044931,44]
[327624619,1716256266888,-820.9,0.00044931,44]
[327624620,1716256266897,-500.0,0.00044931,44]
[327624621,1716256266907,-655.92,0.00044931,44]
[327624622,1716256266916,-500.0,0.00044931,44]
[327624623,1716256266925,-500.0,0.00044931,44]
[327624624,1716256266934,-500.0,0.00044931,44]
[327624625,1716256266943,-500.0,0.00044931,44]
[327624626,1716256266953,-671.89,0.00044931,44]
[327624627,1716256266962,-520.46,0.00044931,44]
[327624628,1716256266971,-500.0,0.00044931,44]
[327624629,1716256266981,-723.43,0.00044931,44]
[327624630,1716256266992,-500.0,0.00044931,44]
[327624631,1716256267001,-500.0,0.00044931,44]
[327624632,1716256267010,-949.87,0.00044931,44]
[327624633,1716256267019,-684.86,0.00044931,44]
[327624634,1716256267029,-778.84,0.00044931,44]
[327624635,1716256267038,-723.49,0.00044931,44]
[327624636,1716256267047,-500.0,0.00044931,44]
[327624637,1716256267056,-797.35,0.00044931,44]
[327624638,1716256267065,-861.17,0.00044931,44]
[327624639,1716256267074,-994.81,0.00044931,44]
[327624640,1716256267083,-574.74408215,0.00044931,44]
[327624641,1716256267092,-736.19,0.00044931,44]
[327624642,1716256267101,-500.0,0.00044931,44]
[327624643,1716256267110,-500.0,0.00044931,44]
[327624644,1716256267119,-585.89,0.00044931,44]
[327624645,1716256267128,-798.18,0.00044931,44]
[327624646,1716256267137,-706.53,0.00044931,44]
[327624647,1716256267147,-500.0,0.00044931,44]
[327624648,1716256267156,-500.0,0.00044931,44]
[327624649,1716256267165,-500.0,0.00044931,44]
[327624650,1716256267174,-500.0,0.00044931,44]
[327624651,1716256267184,-526.95,0.00044931,44]
[327624652,1716256267193,-500.0,0.00044931,44]
[327624653,1716256267202,-500.0,0.00044931,44]
[327624654,1716256267211,-500.0,0.00044931,44]
[327624655,1716256267220,-761.38,0.00044931,44]
[327624656,1716256267229,-699.03,0.00044931,44]
[327624657,1716256267239,-500.0,0.00044931,44]
[327624658,1716256267248,-668.01,0.00044931,44]
[327624659,1716256267257,-983.04,0.00044931,44]
[327624660,1716256267266,-500.0,0.00044931,44]
[327624661,1716256267275,-500.0,0.00044931,44]
[327624662,1716256267285,-500.0,0.00044931,44]
[327624663,1716256267294,-500.0,0.00044931,44]
[327624664,1716256267303,-640.06,0.00044931,44]
[327624665,1716256267312,-557.05,0.00044931,44]
[327624666,1716256267322,-1324.9,0.00044931,44]
[327624667,1716256267331,-634.01,0.00044931,44]
[327624668,1716256267341,-512.82,0.00044931,44]
[327624669,1716256267350,-655.25,0.00044931,44]
[327624670,1716256267359,-500.0,0.00044931,44]
[327624671,1716256267369,-560.44741898,0.00044931,44]
[327624672,1716256267378,-500.0,0.00044931,44]
[327624673,1716256267387,-500.0,0.00044931,44]
[327624674,1716256267397,-820.76,0.00044931,44]
[327624675,1716256267406,-500.0,0.00044931,44]
[327624676,1716256267415,-500.0,0.00044931,44]
[327624677,1716256267425,-500.0,0.00044931,44]
[327624678,1716256267434,-500.0,0.00044931,44]
[327624679,1716256267443,-500.0,0.00044931,44]
[327624680,1716256267453,-500.0,0.00044931,44]
[327624681,1716256267462,-524.49356098,0.00044931,44]
[327624682,1716256267471,-500.0,0.00044931,44]
[327624683,1716256267480,-1050.19,0.00044931,44]
[327624684,1716256267489,-500.0,0.00044931,44]
[327624685,1716256267498,-500.0,0.00044931,44]
[327624686,1716256267508,-500.0,0.00044931,44]
[327624687,1716256267525,-500.0,0.00044931,44]
[327624688,1716256267534,-500.0,0.00044931,44]
[327624689,1716256267543,-578.19,0.00044931,44]
[327624690,1716256267554,-500.0,0.00044931,44]
[327624691,1716256267563,-500.0,0.00044931,14]
[327624692,1716256267572,-504.0405558,0.00044931,44]
[327624693,1716256267581,-500.0,0.00044931,2]
[327624694,1716256267591,-868.84,0.00044931,44]
[327624695,1716256267600,-560.94,0.00044931,44]
[327624696,1716256267610,-500.0,0.00044931,44]
[327624697,1716256267619,-500.0,0.00044931,44]
[327624698,1716256267629,-3015.8,0.00044931,44]
[327624699,1716256267638,-500.0,0.00044931,44]
[327624700,1716256267648,-515.27618539,0.00044931,44]
[327624701,1716256267658,-500.0,0.00044931,120]
[327624702,1716256267667,-742.5,0.00044931,44]
[327624703,1716256267676,-1312.06,0.00044931,44]
[327624704,1716256267686,-500.0,0.00044931,44]
[327624705,1716256267695,-672.9,0.00044931,44]
[327624706,1716256267705,-500.0,0.00044931,44]
[327624707,1716256267714,-1721.54,0.00044931,44]
[327624708,1716256267723,-537.17,0.00044931,44]
[327624709,1716256267732,-1288.56,0.00044931,44]
[327624710,1716256267743,-500.0,0.00044931,44]
[327624711,1716256267752,-2966.04,0.00044931,44]
[327624712,1716256267762,-500.0,0.00044931,44]
[327624713,1716256267771,-800.58,0.00044931,44]
[327624714,1716256267780,-519.32,0.00044931,44]
[327624715,1716256267789,-1101.76,0.00044931,44]
[327624716,1716256267799,-571.16,0.00044931,44]
[327624717,1716256267808,-3000.0,0.00044931,30]
[327624718,1716256267817,-500.0,0.00044931,44]
[327624719,1716256267827,-500.0,0.00044931,44]
[327624720,1716256267836,-679.77,0.00044931,44]
[327624721,1716256267845,-500.0,0.00044931,44]
[327624722,1716256267855,-500.0,0.00044931,44]
[327624723,1716256267864,-3098.74,0.00044931,44]
[327624724,1716256267874,-573.79,0.00044931,44]
[327624725,1716256267883,-740.22,0.00044931,44]
[327624726,1716256267893,-500.0,0.00044931,44]
[327624727,1716256267902,-946.03,0.00044931,44]
[327624728,1716256267911,-520.3,0.00044931,44]
[327624729,1716256267921,-500.0,0.00044931,44]
[327624730,1716256267931,-683.12,0.00044931,44]
[327624731,1716256267940,-1857.09,0.00044931,44]
[327624732,1716256267949,-815.0,0.00044931,44]
[327624733,1716256267959,-500.0,0.00044931,44]
[327624734,1716256267968,-504.58,0.00044931,44]
[327624735,1716256267978,-725.35,0.00044931,44]
[327624736,1716256267987,-1095.12,0.00044931,44]
[327624737,1716256267997,-758.0,0.00044931,44]
[327624738,1716256268007,-10687.91,0.00044931,44]
[327624739,1716256268104,-3071.22,0.00044931,7]
[327624740,1716256268114,-1953.62,0.00044931,44]
[327624741,1716256268123,-500.0,0.00044931,44]
[327624742,1716256268133,-621.32,0.00044931,44]
[327624743,1716256268143,-871.95,0.00044931,7]
[327624744,1716256268152,-500.0,0.00044931,44]
[327624745,1716256268161,-711.26,0.00044931,44]
[327624746,1716256268171,-500.0,0.00044931,44]
[327624747,1716256268180,-779.29,0.00044931,44]
[327624748,1716256268190,-500.0,0.00044931,44]
[327624749,1716256268199,-500.0,0.00044931,44]
[327624750,1716256268208,-500.0,0.00044931,44]
[327624751,1716256268218,-500.0,0.00044931,44]
[327624752,1716256268227,-702.98,0.00044931,44]
[327624753,1716256268238,-746.5,0.00044931,44]
[327624754,1716256268249,-500.0,0.00044931,44]
[327624755,1716256268259,-4569.8,0.00044931,44]
[327624756,1716256268268,-500.0,0.00044931,44]
[327624757,1716256268277,-558.71,0.00044931,44]
[327624758,1716256268287,-500.0,0.00044931,44]
[327624759,1716256268296,-655.44,0.00044931,44]
[327624760,1716256268305,-979.85,0.00044931,44]
[327624761,1716256268315,-616.35,0.00044931,44]
[327624762,1716256268324,-500.0,0.00044931,44]
[327624763,1716256268334,-500.0,0.00044931,44]
[327624764,1716256268343,-860.47,0.00044931,44]
[327624765,1716256268353,-500.0,0.00044931,44]
[327624766,1716256268362,-701.3,0.00044931,44]
[327624767,1716256268372,-621.4,0.00044931,44]
[327624768,1716256268382,-500.0,0.00044931,44]
[327624769,1716256268391,-5043.45,0.00044931,44]
[327624770,1716256268401,-500.0,0.00044931,44]
[327624771,1716256268410,-500.0,0.00044931,44]
[327624772,1716256268420,-500.0,0.00044931,44]
[327624773,1716256268429,-680.66,0.00044931,44]
[327624774,1716256268439,-905.75,0.00044931,44]
[327624775,1716256268448,-500.0,0.00044931,44]
[327624776,1716256268457,-668.38,0.00044931,44]
[327624777,1716256268467,-500.0,0.00044931,44]
[327624778,1716256268476,-4536.56,0.00044931,44]
[327624779,1716256268485,-960.25,0.00044931,44]
[327624780,1716256268496,-335.90824027,0.00044931,44]
[327624781,1716256268505,-634.52,0.00044931,44]
[327624782,1716256268516,-530.04,0.00044931,44]
[327624783,1716256268527,-500.0,0.00044931,44]
[327624784,1716256268540,-500.0,0.00044931,44]
[327624785,1716256268550,-504.64268527,0.00044931,44]
[327624786,1716256268561,-1213.79,0.00044931,44]
[327624787,1716256268571,-815.37,0.00044931,44]
[327624788,1716256268580,-697.34,0.00044931,44]
[327624789,1716256268589,-500.0,0.00044931,44]
[327624790,1716256268599,-500.0,0.00044931,44]
[327624791,1716256268609,-704.21,0.00044931,44]
[327624792,1716256268619,-500.0,0.00044931,20]
[327624793,1716256268629,-543.69,0.00044931,44]
[327624794,1716256268639,-1357.0,0.00044931,44]
[327624795,1716256268648,-300.0,0.00044931,7]
[327624796,1716256268658,-590.21,0.00044931,44]
[327624797,1716256268667,-4443.84,0.00044931,21]
[327624798,1716256268676,-500.0,0.00044931,44]
[327624799,1716256268686,-568.3,0.00044931,44]
[327624800,1716256268695,-500.0,0.00044931,44]
[327624801,1716256268704,-603.81,0.00044931,44]
[327624802,1716256268714,-854.22,0.00044931,44]
[327624803,1716256268723,-1298.13,0.00044931,44]
[327624804,1716256268732,-686.9,0.00044931,44]
[327624805,1716256268743,-500.0,0.00044931,44]
[327624806,1716256268753,-1283.07,0.00044931,44]
[327624807,1716256268763,-500.0,0.00044931,44]
[327624808,1716256268772,-1928.09,0.00044931,44]
[327624809,1716256268782,-1521.93,0.00044931,44]
[327624810,1716256268791,-500.0,0.00044931,44]
[327624811,1716256268801,-500.0,0.00044931,44]
[327624812,1716256268811,-519.65127415,0.00044931,44]
[327624813,1716256268820,-500.0,0.00044931,44]
[327624814,1716256268830,-500.0,0.00044931,44]
[327624815,1716256268840,-3265.34,0.00044931,44]
[327624816,1716256268849,-500.0,0.00044931,44]
[327624817,1716256268859,-962.63,0.00044931,44]
[327624818,1716256268868,-500.0,0.00044931,44]
[327624819,1716256268878,-500.0,0.00044931,44]
[327624820,1716256268887,-19738.08,0.00044931,44]
[327624821,1716256268896,-500.0,0.00044931,44]
[327624822,1716256268906,-500.0,0.00044931,30]
[327624823,1716256268917,-711.64,0.00044931,44]
[327624824,1716256268926,-2017.3,0.00044931,44]
[327624825,1716256268936,-507.99382448,0.00044931,44]